fUST/lending_fUST_20250117
["ID","MTS","AMOUNT","RATE_DAILY","PERIOD"]
[349257284,1737079845042,-1456.4,0.00022053,3]
[349257286,1737079845051,-1456.4,0.00022053,3]
[349257288,1737079845061,-1456.4,0.00022053,3]
[349257290,1737079845071,-151.0,0.00022054,7]
[349257291,1737079845080,-500.0,0.00022054,3]
[349257292,1737079845090,-151.0,0.00022054,7]
[349257293,1737079845100,-500.0,0.00022054,3]
[349257294,1737079845109,-151.0,0.00022054,7]
[349257295,1737079845119,-267.77465886,0.00022054,3]
[349257296,1737079845129,-167.361471,0.00022054,7]
[349257297,1737079845138,-500.0,0.00022054,3]
[349257298,1737079845147,-151.0,0.00022054,7]
[349257299,1737079845157,-169.57,0.00022054,3]
[349257300,1737079845167,-151.0,0.00022054,7]
[349257301,1737079845261,-169.645956,0.00022054,7]
[349257302,1737079845271,-500.0,0.00022054,2]
[349257303,1737079845281,-151.0,0.00022054,7]
[349257304,1737079845291,-17753.15,0.00022054,3]
[349257305,1737079845300,-151.0,0.00022054,7]
[349257306,1737079845310,-151.0,0.00022054,7]
[349257307,1737079845320,-161.018886,0.00022054,7]
[349257308,1737079845329,-234.434032,0.00022054,7]
[349257309,1737079845339,-500.0,0.00022054,2]
[349257310,1737079845348,-154.99693,0.00022054,7]
[349257311,1737079845358,-160.36577,0.00022054,7]
[349257312,1737079845369,-151.0,0.00022054,7]
[349257313,1737079845379,-742.547044,0.00022054,7]
[349257314,1737079845391,-500.0,0.00022054,3]
[349257315,1737079845401,-742.547044,0.00022054,7]
[349257316,1737079845410,-500.0,0.00022054,3]
[349257317,1737079845420,-261.25363926,0.00022054,3]
[349257318,1737079845429,-150.31408277,0.00022054,3]
[349257319,1737079845439,-150.21553208,0.00022054,3]
[349257321,1737079845449,-500.0,0.00022054,3]
[349257322,1737079845459,-151.0,0.00022054,7]
[349257324,1737079845468,-151.0,0.00022054,7]
[349257326,1737079845478,-500.0,0.00022054,3]
[349257328,1737079845487,-200.05401174,0.00022054,3]
[349257330,1737079845497,-150.39692716,0.00022054,3]
[349257332,1737079845506,-152.75145611,0.00022054,3]
[349257334,1737079845515,-291.65905032,0.00022054,3]
[349257336,1737079845524,-500.0,0.00022054,3]
[349257338,1737079845534,-500.0,0.00022054,3]
[349257340,1737079845544,-150.63652259,0.00022054,3]
[349257342,1737079845553,-151.0,0.00022054,7]
[349257344,1737079845562,-150.14838327,0.00022054,3]
[349257346,1737079845572,-1100.87,0.00022054,3]
[349257348,1737079845581,-151.0,0.00022054,7]
[349257350,1737079845591,-151.0,0.00022054,7]
[349257352,1737079845600,-151.0,0.00022054,7]
[349257354,1737079845610,-500.0,0.00022054,3]
[349257356,1737079845621,-22304.45,0.00022054,3]
[349257358,1737079845631,-184.90119514,0.00022054,3]
[349257360,1737079845640,-500.0,0.00022054,3]
[349257362,1737079845654,-495.06404549,0.00022054,3]
[349257364,1737079845664,-273.698216,0.00022054,7]
[349257366,1737079845673,-273.698216,0.00022054,7]
[349257368,1737079845682,-440.76189603,0.00022054,7]
[349257370,1737079845694,-216.96802397,0.00022054,3]
[349257372,1737079845703,-500.0,0.00022054,3]
[349257374,1737079845714,-500.0,0.00022054,3]
[349257376,1737079845723,-302.06441864,0.00022054,3]
[349257378,1737079845734,-500.0,0.00022054,3]
[349257380,1737079845743,-500.0,0.00022054,3]
[349257382,1737079845754,-6379.3,0.00022054,3]
[349257384,1737079845763,-33818.81415918,0.00022091,3]
[349257386,1737079845772,-193.22057756,0.00022091,2]
[349257388,1737079845782,-1456.4,0.00022099,3]
[349257390,1737079845791,-949.05,0.000221,14]
[349257392,1737079845800,-658.58432,0.00022107,3]
[349257394,1737079845810,-658.58432,0.00022176,3]
[349257396,1737079845819,-1456.4,0.0002219,3]
[349257398,1737079845828,-1456.4,0.0002219,3]
[349257400,1737079845838,-1456.4,0.0002219,3]
[349257402,1737079845847,-2321.56839617,0.0002219,5]
[349257405,1737079845863,-13827.05538904,0.00022191,5]
[349257408,1737079845878,-152.220067,0.00022191,7]
[349257410,1737079845888,-500.0,0.00022191,3]
[349257412,1737079845897,-151.0,0.00022191,7]
[349257414,1737079845906,-500.0,0.00022191,3]
[349257416,1737079845916,-170.752193,0.00022191,7]
[349257418,1737079845927,-500.0,0.00022191,3]
[349257420,1737079845937,-151.0,0.00022191,7]
[349257422,1737079845947,-151.0,0.00022191,7]
[349257424,1737079845957,-500.0,0.00022191,2]
[349257426,1737079845967,-151.0,0.00022191,7]
[349257428,1737079845977,-17753.15,0.00022191,3]
[349257430,1737079845986,-151.0,0.00022191,7]
[349257432,1737079845996,-151.0,0.00022191,7]
[349257434,1737079846005,-500.0,0.00022191,2]
[349257436,1737079846016,-157.068709,0.00022191,7]
[349257438,1737079846026,-742.547044,0.00022191,7]
[349257440,1737079846035,-500.0,0.00022191,3]
[349257442,1737079846045,-742.547044,0.00022191,7]
[349257444,1737079846055,-500.0,0.00022191,3]
[349257446,1737079846064,-500.0,0.00022191,3]
[349257448,1737079846074,-151.0,0.00022191,7]
[349257450,1737079846083,-151.0,0.00022191,7]
[349257452,1737079846093,-500.0,0.00022191,3]
[349257454,1737079846102,-151.0,0.00022191,7]
[349257456,1737079846112,-1100.87,0.00022191,3]
[349257458,1737079846123,-269.078107,0.00022191,7]
[349257460,1737079846132,-151.0,0.00022191,7]
[349257462,1737079846142,-246.122829,0.00022191,7]
[349257464,1737079846151,-431.33982737,0.00022191,3]
[349257466,1737079846161,-22304.45,0.00022191,3]
[349257468,1737079846170,-500.0,0.00022191,3]
[349257470,1737079846180,-273.698216,0.00022191,7]
[349257473,1737079846190,-273.698216,0.00022191,7]
[349257475,1737079846200,-500.0,0.00022191,3]
[349257477,1737079846210,-502.53211623,0.00022191,3]
[349257479,1737079846219,-500.0,0.00022191,3]
[349257481,1737079846229,-6379.3,0.00022191,3]
[349257483,1737079846238,-500.0,0.00022208,8]
[349257485,1737079846248,-501.14416764,0.00022208,8]
[349257488,1737079846257,-500.0,0.00022224,2]
[349257491,1737079846267,-658.58432,0.00022245,3]
[349257494,1737079846276,-658.58432,0.00022314,3]
[349257497,1737079846286,-1456.4,0.00022327,3]
[349257500,1737079846298,-1456.4,0.00022327,3]
[349257502,1737079846307,-1456.4,0.00022327,3]
[349257504,1737079846317,-1456.4,0.00022327,3]
[349257506,1737079846326,-1456.4,0.00022327,3]
[349257508,1737079846336,-1456.4,0.00022327,3]
[349257510,1737079846346,-1456.59662513,0.00022327,3]
[349257512,1737079846355,-500.0,0.00022328,3]
[349257515,1737079846365,-652.05134079,0.00022328,3]
[349257516,1737079846378,-150.91709138,0.00022328,3]
[349257519,1737079846388,-500.0,0.00022328,3]
[349257521,1737079846397,-201.48161398,0.00022328,3]
[349257524,1737079846415,-161.75276423,0.00022328,3]
[349257526,1737079846429,-500.0,0.00022328,3]
[349257529,1737079846443,-151.0,0.00022328,7]
[349257531,1737079846456,-500.0,0.00022328,3]
[349257534,1737079846469,-375.95513946,0.00022328,3]
[349257536,1737079846481,-170.353489,0.00022328,7]
[349257538,1737079846492,-151.0,0.00022328,7]
[349257540,1737079846503,-500.0,0.00022328,2]
[349257543,1737079846517,-151.0,0.00022328,7]
[349257545,1737079846528,-163.10031,0.00022328,7]
[349257547,1737079846541,-17753.15,0.00022328,3]
[349257550,1737079846552,-151.0,0.00022328,7]
[349257552,1737079846564,-500.0,0.00022328,2]
[349257554,1737079846576,-742.547044,0.00022328,7]
[349257556,1737079846589,-154.89096415,0.00022328,3]
[349257559,1737079846600,-742.547044,0.00022328,7]
[349257561,1737079846614,-500.0,0.00022328,3]
[349257563,1737079846628,-500.0,0.00022328,3]
[349257566,1737079846640,-151.0,0.00022328,7]
[349257568,1737079846655,-151.0,0.00022328,7]
[349257570,1737079846667,-500.0,0.00022328,3]
[349257572,1737079846679,-151.0,0.00022328,7]
[349257575,1737079846691,-1100.87,0.00022328,3]
[349257577,1737079846707,-151.0,0.00022328,7]
[349257580,1737079846720,-19338.42000823,0.00022328,3]
[349260647,1737079979611,224.247144,0.00013973,2]
[349260648,1737080276018,158.014429,0.0002411,120]
[349260650,1737080509747,196.85789157,0.00025,120]
[349260653,1737080751692,240.0,0.00025,120]
[349260655,1737080797165,161.08,0.00025,120]
[349260675,1737080911379,231.177077,0.00013973,2]
[349260735,1737081033221,-300.0,0.00019887,2]
[349260737,1737081033231,-1245.6429593,0.00019888,7]
[349261510,1737081041049,-713.95701685,0.00019888,7]
[349261788,1737081043901,-10494.85193956,0.00019888,7]
[349261790,1737081043911,-159.86182948,0.000199,2]
[349261792,1737081043921,-500.0,0.00019999,2]
[349261794,1737081043931,-254.22082658,0.00019999,2]
[349261795,1737081043940,-354.68850187,0.00019999,2]
[349261797,1737081043950,-500.0,0.00019999,2]
[349261799,1737081043959,-500.0,0.00019999,2]
[349261801,1737081043968,-601.56529576,0.00019999,2]
[349261803,1737081043978,-509.08229748,0.00019999,2]
[349261805,1737081043987,-286.81643728,0.00019999,2]
[349261806,1737081043997,-500.0,0.00019999,2]
[349261807,1737081044006,-12171.10422472,0.0002,5]
[349261808,1737081044018,-1160.78419808,0.0002,5]
[349261809,1737081044156,-1443324.896249,0.0002,5]
[349261810,1737081044165,-5186.19612715,0.0002,2]
[349261811,1737081044175,-151.0,0.0002,2]
[349261812,1737081044184,-974.71,0.0002,2]
[349261813,1737081044194,-3161.88,0.0002,2]
[349261814,1737081044204,-314.69348079,0.00020114,2]
[349261815,1737081044213,-6992.3119723,0.00020413,2]
[349261816,1737081044223,-231.177077,0.00020447,2]
[349261817,1737081044232,-201.703532,0.00020776,2]
[349261818,1737081044242,-159.86182948,0.00020814,2]
[349261819,1737081044251,-504.91464543,0.000209,2]
[349261820,1737081044261,-1248.292536,0.00020907,2]
[349261821,1737081044270,-504.91464533,0.00021003,2]
[349261822,1737081044280,-504.91464533,0.00021107,2]
[349261823,1737081044290,-502.907,0.0002121,2]
[349261824,1737081044300,-504.91464533,0.0002121,2]
[349261825,1737081044310,-504.91464533,0.00021314,2]
[349261826,1737081044319,-504.91464533,0.00021417,2]
[349261827,1737081044329,-504.91464533,0.00021521,2]
[349261828,1737081044339,-504.91464533,0.00021624,3]
[349261829,1737081044348,-420.0,0.00021657,2]
[349261830,1737081044358,-5000.0,0.00021681,7]
[349261831,1737081044368,-504.91464533,0.00021728,3]
[349261832,1737081044378,-159.86182948,0.00021729,2]
[349261833,1737081044388,-504.91464533,0.00021831,3]
[349261834,1737081044397,-168.809,0.000219,2]
[349261835,1737081044407,-974.71,0.000219,2]
[349261836,1737081044416,-3161.88,0.000219,2]
[349261837,1737081044427,-500.0,0.00021917,3]
[349261838,1737081044437,-500.0,0.00021917,3]
[349261839,1737081044446,-500.0,0.00021917,3]
[349261840,1737081044456,-500.0,0.00021917,3]
[349261841,1737081044465,-220.88266284,0.00021917,3]
[349261842,1737081044476,-500.0,0.00021917,3]
[349261843,1737081044485,-500.0,0.00021917,2]
[349261844,1737081044495,-500.0,0.00021917,3]
[349261845,1737081044504,-500.0,0.00021917,3]
[349261846,1737081044513,-500.0,0.00021917,2]
[349261847,1737081044523,-14794.3,0.00021917,3]
[349261848,1737081044532,-505.89424158,0.00021917,3]
[349261849,1737081044542,-519.27,0.00021917,3]
[349261850,1737081044552,-1949.42,0.00021917,3]
[349261851,1737081044561,-502.19048494,0.00021917,3]
[349261852,1737081044571,-500.0,0.00021917,3]
[349261853,1737081044581,-507.47751334,0.00021917,3]
[349261854,1737081044592,-500.0,0.00021917,3]
[349261855,1737081044601,-500.0,0.00021917,3]
[349261856,1737081044611,-500.0,0.00021917,3]
[349261857,1737081044620,-502.1051732,0.00021917,3]
[349261858,1737081044630,-500.0,0.00021917,3]
[349261859,1737081044641,-1000.0,0.00021917,7]
[349261860,1737081044651,-18710.62,0.00021917,3]
[349261861,1737081044661,-570.06,0.00021917,3]
[349261862,1737081044671,-500.0,0.00021917,3]
[349261863,1737081044681,-500.0,0.00021917,3]
[349261864,1737081044690,-500.0,0.00021917,3]
[349261865,1737081044700,-500.0,0.00021917,3]
[349261866,1737081044709,-503.5832943,0.00021917,3]
[349261867,1737081044719,-504.4958231,0.00021917,3]
[349261868,1737081044729,-500.0,0.00021917,3]
[349261869,1737081044738,-5602.72,0.00021917,3]
[349261870,1737081044747,-504.91464533,0.00021934,3]
[349261871,1737081044756,-504.91464533,0.00022038,3]
[349261872,1737081044767,-500.0,0.00022054,3]
[349261873,1737081044776,-500.0,0.00022054,3]
[349261874,1737081044785,-500.0,0.00022054,3]
[349261875,1737081044794,-500.0,0.00022054,3]
[349261876,1737081044804,-522.44468934,0.00022054,3]
[349261877,1737081044814,-500.0,0.00022054,2]
[349261878,1737081044824,-500.0,0.00022054,3]
[349261879,1737081044833,-548.42130896,0.00022054,3]
[349261880,1737081044842,-500.0,0.00022054,2]
[349261881,1737081044852,-14794.3,0.00022054,3]
[349261882,1737081044861,-1949.42,0.00022054,3]
[349261883,1737081044870,-500.0,0.00022054,3]
[349261884,1737081044879,-500.0,0.00022054,3]
[349261885,1737081044888,-500.0,0.00022054,3]
[349261886,1737081044898,-500.0,0.00022054,3]
[349261887,1737081044907,-18710.62,0.00022054,3]
[349261888,1737081044916,-570.06,0.00022054,3]
[349261889,1737081044926,-500.0,0.00022054,3]
[349261890,1737081044935,-500.0,0.00022054,3]
[349261891,1737081044944,-500.0,0.00022054,3]
[349261892,1737081044953,-500.0,0.00022054,3]
[349261893,1737081044962,-5602.72,0.00022054,3]
[349261894,1737081044972,-504.91464533,0.00022141,3]
[349261895,1737081044982,-500.0,0.00022191,3]
[349261896,1737081044991,-301.66008458,0.00022191,3]
[349261897,1737081045000,-500.0,0.00022191,3]
[349261898,1737081045009,-500.0,0.00022191,3]
[349261899,1737081045019,-500.0,0.00022191,2]
[349261900,1737081045034,-500.0,0.00022191,3]
[349261901,1737081045046,-500.0,0.00022191,2]
[349261902,1737081045056,-14794.3,0.00022191,3]
[349261903,1737081045065,-1949.42,0.00022191,3]
[349261904,1737081045075,-500.0,0.00022191,3]
[349261906,1737081045084,-446.62600225,0.00022191,3]
[349261908,1737081045093,-500.0,0.00022191,3]
[349261910,1737081045103,-500.0,0.00022191,3]
[349261912,1737081045113,-18710.62,0.00022191,3]
[349261913,1737081045122,-570.06,0.00022191,3]
[349261915,1737081045131,-500.0,0.00022191,3]
[349261917,1737081045141,-500.0,0.00022191,3]
[349261919,1737081045150,-500.0,0.00022191,3]
[349261921,1737081045159,-500.0,0.00022191,3]
[349261923,1737081045168,-5602.72,0.00022191,3]
[349261925,1737081045177,-504.91464533,0.00022245,3]
[349261927,1737081045186,-500.0,0.00022328,3]
[349261929,1737081045196,-500.0,0.00022328,3]
[349261931,1737081045205,-500.0,0.00022328,3]
[349261933,1737081045214,-500.0,0.00022328,2]
[349261935,1737081045224,-500.0,0.00022328,3]
[349261937,1737081045233,-500.0,0.00022328,2]
[349261939,1737081045242,-14794.3,0.00022328,3]
[349261941,1737081045251,-1949.42,0.00022328,3]
[349261943,1737081045260,-500.0,0.00022328,3]
[349261945,1737081045269,-199.03368146,0.00022328,3]
[349261947,1737081045279,-500.0,0.00022328,3]
[349261948,1737081045288,-18710.62,0.00022328,3]
[349261950,1737081045299,-570.06,0.00022328,3]
[349261952,1737081045315,-151.0,0.00022328,7]
[349261954,1737081045323,-500.0,0.00022328,3]
[349261956,1737081045333,-430.30507113,0.00022328,3]
[349261958,1737081045342,-500.0,0.00022328,3]
[349261960,1737081045355,-539.5,0.00022328,3]
[349261962,1737081045365,-151.0,0.00022328,7]
[349261964,1737081045374,-5602.72,0.00022328,3]
[349261966,1737081045384,-504.91464533,0.00022348,3]
[349261968,1737081045395,-151.0,0.0002238,2]
[349261970,1737081045404,-151.0,0.0002238,2]
[349261972,1737081045413,-151.0,0.0002238,2]
[349261974,1737081045423,-151.0,0.0002238,2]
[349261976,1737081045434,-151.0,0.0002238,2]
[349261978,1737081045444,-151.0,0.0002238,2]
[349261980,1737081045454,-151.0,0.0002238,2]
[349261982,1737081045463,-199.81,0.0002238,2]
[349261984,1737081045473,-500.0,0.00022413,2]
[349261986,1737081045482,-5000.0,0.00022442,2]
[349261988,1737081045492,-5000.0,0.00022442,2]
[349261990,1737081045501,-5000.0,0.00022442,2]
[349261992,1737081045511,-5000.0,0.00022442,2]
[349261994,1737081045520,-5000.0,0.00022442,2]
[349261995,1737081045530,-504.91464533,0.00022452,3]
[349261997,1737081045539,-5014.74169822,0.00022461,2]
[349261999,1737081045549,-500.0,0.00022465,3]
[349262001,1737081045558,-382.78354974,0.00022465,3]
[349262003,1737081045567,-500.0,0.00022465,3]
[349262005,1737081045577,-500.0,0.00022465,2]
[349262007,1737081045586,-500.0,0.00022465,3]
[349262009,1737081045596,-554.93071413,0.00022465,2]
[349262011,1737081045606,-14794.3,0.00022465,3]
[349262013,1737081045615,-1949.42,0.00022465,3]
[349262015,1737081045625,-500.0,0.00022465,3]
[349262017,1737081045635,-500.0,0.00022465,3]
[349262019,1737081045644,-18710.62,0.00022465,3]
[349262021,1737081045654,-570.06,0.00022465,3]
[349262023,1737081045664,-151.0,0.00022465,7]
[349262024,1737081045673,-281.83447361,0.00022465,3]
[349262026,1737081045684,-500.0,0.00022465,3]
[349262028,1737081045694,-526.5,0.00022465,3]
[349262030,1737081045703,-151.0,0.00022465,7]
[349262032,1737081045713,-500.0,0.00022465,3]
[349262034,1737081045723,-5602.72,0.00022465,3]
[349262036,1737081045732,-8257.55,0.000225,2]
[349262038,1737081045742,-5000.0,0.000225,30]
[349262040,1737081045751,-151.0,0.000225,7]
[349262042,1737081045760,-156.590779,0.000225,7]
[349262044,1737081045770,-445.528227,0.000225,7]
[349262046,1737081045779,-445.528227,0.000225,7]
[349262048,1737081045788,-191.588751,0.000225,7]
[349262050,1737081045798,-191.588751,0.000225,7]
[349262052,1737081045807,-195.362065,0.000225,7]
[349262054,1737081045816,-156.900458,0.000225,7]
[349262056,1737081045826,-500.0,0.00022502,8]
[349262058,1737081045836,-151.0,0.00022509,2]
[349262060,1737081045845,-151.0,0.00022509,2]
[349262062,1737081045855,-151.0,0.00022544,2]
[349262064,1737081045864,-151.0,0.00022544,2]
[349262066,1737081045874,-151.0,0.00022544,2]
[349262068,1737081045883,-151.0,0.00022544,2]
[349262070,1737081045892,-151.0,0.00022544,2]
[349262072,1737081045902,-151.0,0.00022544,2]
[349262074,1737081045911,-151.0,0.00022544,2]
[349262076,1737081045920,-151.0,0.00022544,2]
[349262078,1737081045930,-151.0,0.00022544,2]
[349262080,1737081045939,-151.0,0.00022544,2]
[349262082,1737081045948,-151.0,0.00022544,2]
[349262084,1737081045957,-151.0,0.00022544,2]
[349262085,1737081045967,-151.0,0.00022544,2]
[349262087,1737081045976,-151.0,0.00022544,2]
[349262089,1737081045985,-151.0,0.00022544,2]
[349262091,1737081045995,-151.0,0.00022544,2]
[349262093,1737081046004,-151.0,0.00022544,2]
[349262095,1737081046014,-151.0,0.00022544,2]
[349262097,1737081046023,-260.0,0.00022544,2]
[349262099,1737081046036,-504.91464533,0.00022555,3]
[349262101,1737081046046,-150.118667,0.000226,2]
[349262103,1737081046056,-500.0,0.00022602,3]
[349262105,1737081046065,-450.97850572,0.00022602,3]
[349262107,1737081046075,-615.73278764,0.00022602,2]
[349262108,1737081046084,-500.0,0.00022602,3]
[349262110,1737081046093,-14794.3,0.00022602,3]
[349262112,1737081046102,-1949.42,0.00022602,3]
[349262114,1737081046112,-500.0,0.00022602,3]
[349262116,1737081046121,-500.0,0.00022602,3]
[349262118,1737081046131,-18710.62,0.00022602,3]
[349262120,1737081046140,-151.0,0.00022602,7]
[349262122,1737081046149,-151.0,0.00022602,7]
[349262123,1737081046159,-5602.72,0.00022602,3]
[349262124,1737081046168,-159.86182948,0.00022643,2]
[349262125,1737081046177,-504.91464533,0.00022659,3]
[349262127,1737081046186,-1203.491,0.00022678,2]
[349262129,1737081046195,-500.0,0.00022739,3]
[349262131,1737081046205,-501.23323618,0.00022739,3]
[349262133,1737081046214,-507.00884905,0.00022739,3]
[349262135,1737081046224,-151.0,0.00022739,7]
[349262137,1737081046235,-285.00767,0.00022739,7]
[349262139,1737081046244,-151.0,0.00022739,7]
[349262141,1737081046255,-500.0,0.00022739,3]
[349262143,1737081046264,-445.528227,0.00022739,7]
[349262145,1737081046273,-445.528227,0.00022739,7]
[349262147,1737081046282,-191.588751,0.00022739,7]
[349262149,1737081046292,-191.588751,0.00022739,7]
[349262151,1737081046301,-14794.3,0.00022739,3]
[349262153,1737081046311,-1949.42,0.00022739,3]
[349262154,1737081046320,-500.0,0.00022739,3]
[349262156,1737081046330,-500.0,0.00022739,3]
[349262158,1737081046339,-18710.62,0.00022739,3]
[349262160,1737081046348,-5602.72,0.00022739,3]
[349262162,1737081046358,-601.42252761,0.00022743,2]
[349262164,1737081046368,-504.91464533,0.00022762,3]
[349262166,1737081046378,-153.0,0.00022862,2]
[349262167,1737081046387,-153.0,0.00022862,2]
[349262169,1737081046397,-504.91464533,0.00022866,3]
[349262171,1737081046406,-63837.58488715,0.0002287,2]
[349262173,1737081046416,-151.0,0.0002287,7]
[349262175,1737081046425,-151.0,0.0002287,7]
[349262177,1737081046435,-151.0,0.0002287,7]
[349262179,1737081046444,-445.528227,0.0002287,7]
[349262181,1737081046453,-445.528227,0.0002287,7]
[349262183,1737081046462,-191.588751,0.0002287,7]
[349262185,1737081046471,-191.588751,0.0002287,7]
[349262187,1737081046481,-151.0,0.0002287,7]
[349262189,1737081046489,-151.0,0.0002287,7]
[349262191,1737081046499,-500.0,0.00022876,3]
[349262193,1737081046508,-14794.3,0.00022876,3]
[349262195,1737081046517,-1949.42,0.00022876,3]
[349262196,1737081046527,-500.0,0.00022876,3]
[349262198,1737081046536,-500.0,0.00022876,3]
[349262200,1737081046545,-18710.62,0.00022876,3]
[349262202,1737081046554,-5602.72,0.00022876,3]
[349262204,1737081046565,-151.0,0.000229,9]
[349262206,1737081046575,-985.75976498,0.000229,2]
[349262208,1737081046584,-1076.88246761,0.0002296,2]
[349262210,1737081046594,-504.91464533,0.00022969,3]
[349262212,1737081046603,-244.34706014,0.00023,2]
[349262214,1737081046613,-33573.19947658,0.00023,2]
[349262216,1737081046621,-7438.69753278,0.00023,2]
[349262218,1737081046631,-151.0,0.00023,5]
[349262220,1737081046642,-163.453505,0.00023,7]
[349262222,1737081046651,-151.0,0.00023,7]
[349262224,1737081046667,-151.0,0.00023,7]
[349262227,1737081046679,-7438.69753278,0.00023,3]
[349262229,1737081046688,-445.528227,0.00023,7]
[349262230,1737081046697,-445.528227,0.00023,7]
[349262232,1737081046706,-191.588751,0.00023,7]
[349262234,1737081046715,-191.588751,0.00023,7]
[349262236,1737081046725,-151.0,0.00023,7]
[349262238,1737081046735,-151.0,0.00023,7]
[349262240,1737081046745,-201.16616425,0.00023013,3]
[349262242,1737081046754,-500.0,0.00023013,3]
[349262244,1737081046763,-190.82007561,0.00023013,3]
[349262246,1737081046772,-14794.3,0.00023013,3]
[349262248,1737081046782,-1949.42,0.00023013,3]
[349262250,1737081046791,-426.61,0.00023013,3]
[349262252,1737081046800,-500.0,0.00023013,3]
[349262254,1737081046817,-18710.62,0.00023013,3]
[349262256,1737081046827,-5602.72,0.00023013,3]
[349262258,1737081046836,-504.91464533,0.00023072,3]
[349262260,1737081046846,-151.0,0.0002315,7]
[349262262,1737081046855,-151.0,0.0002315,7]
[349262264,1737081046867,-445.528227,0.0002315,7]
[349262266,1737081046876,-445.528227,0.0002315,7]
[349262268,1737081046886,-191.588751,0.0002315,7]
[349262274,1737081046901,-191.588751,0.0002315,7]
[349262275,1737081047041,-14794.3,0.0002315,3]
[349262276,1737081047050,-1949.42,0.0002315,3]
[349262277,1737081047059,-225.44895977,0.0002315,3]
[349262279,1737081047068,-18710.62,0.0002315,3]
[349262280,1737081047078,-151.0,0.0002315,7]
[349262281,1737081047087,-151.0,0.0002315,7]
[349262282,1737081047096,-5602.72,0.0002315,3]
[349262283,1737081047105,-504.91464533,0.00023176,3]
[349262284,1737081047115,-151.0,0.000232,9]
[349262285,1737081047124,-504.91464533,0.00023279,3]
[349262286,1737081047133,-506.01394993,0.00023287,3]
[349262287,1737081047143,-151.0,0.00023287,7]
[349262288,1737081047152,-445.528227,0.00023287,7]
[349262289,1737081047161,-445.528227,0.00023287,7]
[349262290,1737081047170,-191.588751,0.00023287,7]
[349262291,1737081047179,-191.588751,0.00023287,7]
[349262292,1737081047189,-14794.3,0.00023287,3]
[349262294,1737081047199,-1949.42,0.00023287,3]
[349262296,1737081047208,-18710.62,0.00023287,3]
[349262298,1737081047217,-974.71,0.000233,14]
[349262300,1737081047227,-3161.88,0.000233,14]
[349262302,1737081047235,-504.91464533,0.00023383,3]
[349262304,1737081047245,-300.0,0.000234,10]
[349262306,1737081047254,-6126.65493671,0.000234,7]
[349262308,1737081047263,-151.0,0.000234,9]
[349262310,1737081047272,-151.0,0.00023424,7]
[349262312,1737081047281,-151.0,0.00023424,7]
[349262314,1737081047291,-14794.3,0.00023424,3]
[349262316,1737081047300,-1949.42,0.00023424,3]
[349262318,1737081047323,-18710.62,0.00023424,3]
[349262320,1737081047331,-22556.50618562,0.00023436,2]
[349262322,1737081047340,-504.91464533,0.00023486,3]
[349262324,1737081047350,-2258.38,0.000235,30]
[349262326,1737081047362,-519.64102545,0.000235,2]
[349262328,1737081047372,-295.65320749,0.000235,2]
[349262330,1737081047381,-445.528227,0.000235,7]
[349262332,1737081047391,-445.528227,0.000235,7]
[349262334,1737081047400,-191.588751,0.000235,7]